bitfinex/quotes_ETHUSD_20240707
["timestamp","ask_amount","ask_price","bid_price","bid_amount"]
[1720396051356,0.2708114,2936.4,2935.1,0.55]
[1720396051556,3.2708114,2936.4,2935.1,0.55]
[1720396052548,0.07896045,2936.3,2935.1,0.55]
[1720396053384,2.3835,2936.2,2935.0,2.39086227]
[1720396053608,2.3835,2935.9,2935.0,2.39086227]
[1720396054872,0.07896045,2935.8,2935.0,2.39086227]
[1720396055092,0.25104716,2935.8,2935.0,2.39086227]
[1720396055385,3.07896045,2935.8,2935.0,2.39086227]
[1720396055758,2.3835,2935.9,2935.0,2.39086227]
[1720396055759,0.25102789,2935.7,2935.0,2.39086227]
[1720396056080,0.07896045,2935.6,2935.0,2.39086227]
[1720396058390,2.3504,2935.5,2935.0,2.39086227]
[1720396058595,0.07896045,2935.4,2935.0,2.39086227]
[1720396059671,0.07896045,2935.4,2935.1,0.06809293]
[1720396059861,0.07896045,2935.4,2935.2,0.24589552]
[1720396061248,0.07896045,2935.4,2935.0,2.39086227]
[1720396063588,2.4258,2935.3,2935.0,2.39086227]
[1720396063994,5.4258,2935.3,2935.0,2.39086227]
[1720396064151,0.07896045,2935.4,2935.0,2.39086227]
[1720396064463,0.07896045,2935.4,2935.1,0.55]
[1720396064667,0.07896045,2935.4,2935.1,0.84408623]
[1720396065390,0.07896045,2935.4,2935.1,0.29408623]
[1720396067866,0.07896045,2935.4,2935.0,2.39086227]
[1720396074707,0.07896045,2935.4,2935.1,0.05401371]
[1720396075393,0.07896045,2935.4,2935.2,0.55]
[1720396075598,0.07896045,2935.4,2935.3,0.05401002]
[1720396075767,0.07896045,2935.4,2935.3,0.60401002]
[1720396076299,0.07896045,2935.4,2935.3,0.95930903]
[1720396076516,0.07896045,2935.4,2935.3,3.27850903]
[1720396076666,0.07896045,2935.4,2935.3,3.60635993]
[1720396077301,0.07896045,2935.4,2935.3,3.5382509]
[1720396077597,0.07896045,2935.4,2935.3,6.5382509]
[1720396078089,0.07896045,2935.4,2935.3,3.5382509]
[1720396078308,0.07896045,2935.4,2935.3,3.1970509]
[1720396078491,0.07896045,2935.4,2935.3,0.55]
[1720396078802,0.07896045,2935.4,2935.0,2.73206227]
[1720396080011,0.07896045,2935.4,2935.1,0.55]
[1720396080446,0.07896045,2935.4,2935.2,0.3412]
[1720396080627,0.07896045,2935.4,2935.3,4.0062]
[1720396080925,0.07896045,2935.4,2935.3,3.57062]
[1720396081249,0.07896045,2935.4,2935.0,2.39086227]
[1720396081636,0.07896045,2935.4,2935.0,2.73206227]
[1720396082444,0.07896045,2935.4,2935.1,3.4562]
[1720396082757,0.07896045,2935.4,2935.2,0.55]
[1720396083318,0.07896045,2935.4,2935.3,0.3412]
[1720396083517,0.07896045,2935.4,2935.3,1.29182]
[1720396083718,0.07896045,2935.4,2935.3,1.33260136]
[1720396084349,0.1720736,2937.1,2935.3,6.97586008]
[1720396084516,0.1720736,2937.1,2935.8,3.115]
[1720396084712,0.1720736,2937.1,2935.9,0.55]
[1720396084918,0.43461096,2937.1,2935.9,0.55]
[1720396085221,0.43461096,2937.1,2935.5,6.98398225]
[1720396085647,3.43461096,2937.1,2935.5,6.98398225]
[1720396085863,0.1720736,2937.0,2935.5,6.98398225]
[1720396086434,0.1720736,2937.0,2935.6,0.55]
[1720396086672,0.1720736,2937.0,2935.1,4.68938225]
[1720396086673,2.4398,2936.9,2935.1,4.68938225]
[1720396086989,2.4398,2936.7,2935.0,2.39086227]
[1720396087128,2.4398,2936.2,2935.0,2.39086227]
[1720396087329,2.4398,2936.0,2935.0,2.39086227]
[1720396087564,0.1720736,2935.9,2935.0,2.39086227]
[1720396087779,2.64575121,2935.9,2935.0,2.39086227]
[1720396087932,8.06035121,2935.8,2935.0,2.39086227]
[1720396088280,2.4146,2935.6,2935.0,2.39086227]
[1720396088568,2.47367761,2935.4,2935.0,2.39086227]
[1720396088767,2.64575121,2935.3,2935.0,2.39086227]
[1720396088972,3.43664872,2935.2,2935.0,2.39086227]
[1720396089206,0.1720736,2935.1,2935.0,2.39086227]
[1720396089668,0.26457512,2935.2,2935.0,2.39086227]
[1720396090180,3.43664872,2935.2,2935.0,2.39086227]
[1720396090360,0.1720736,2935.1,2935.0,2.39086227]
[1720396090673,3.17190989,2935.1,2935.0,2.39086227]
[1720396090965,0.17190989,2935.1,2935.0,2.39086227]
[1720396091179,0.17190989,2935.3,2935.0,2.39086227]
[1720396091534,0.17190989,2935.4,2935.0,2.39086227]
[1720396093735,2.47039189,2935.3,2935.0,2.39086227]
[1720396093956,0.17190989,2935.2,2935.0,2.39086227]
[1720396094264,5.64230178,2935.2,2935.0,2.39086227]
[1720396094591,0.17190989,2935.1,2935.0,2.39086227]
[1720396095363,3.17190989,2935.2,2935.0,2.39086227]
[1720396095551,0.17190989,2935.1,2935.0,2.39086227]
[1720396095872,3.0,2935.1,2935.0,2.39086227]
[1720396096077,3.17190989,2935.1,2935.0,2.39086227]
[1720396096439,0.17190989,2935.1,2935.0,2.39086227]
[1720396097276,3.17190989,2935.2,2935.0,2.39086227]
[1720396097437,0.17190989,2935.1,2935.0,2.39086227]
[1720396097760,3.17190989,2935.2,2935.0,2.39086227]
[1720396097933,0.17190989,2935.1,2935.0,2.39086227]
[1720396098757,0.17190989,2935.2,2935.0,2.39086227]
[1720396098956,0.45322458,2935.3,2935.0,2.39086227]
[1720396100042,0.17190989,2935.3,2935.0,2.39086227]
[1720396100282,0.17190989,2935.5,2935.0,2.39086227]
[1720396100448,0.17190989,2935.8,2935.0,2.39086227]
[1720396100650,0.17190989,2935.9,2935.0,2.39086227]
[1720396101257,0.17190989,2935.9,2935.1,0.58842284]
[1720396101457,0.17190989,2936.3,2935.2,2.66622851]
[1720396101656,4.85273526,2937.1,2935.3,0.61811058]
[1720396101850,0.17187316,2937.0,2935.3,0.61811058]
[1720396102075,0.17187316,2937.2,2935.3,0.61811058]
[1720396102296,0.17187316,2937.3,2935.3,0.95931058]
[1720396102477,0.435924,2937.3,2935.4,0.36255391]
[1720396102802,0.435924,2937.3,2935.5,0.61810201]
[1720396102955,0.17187316,2937.4,2935.5,0.95930201]
[1720396103288,0.17187316,2937.4,2935.8,2.4017]
[1720396103500,2.2544,2937.6,2935.8,2.4017]
[1720396103501,0.17187316,2937.5,2935.9,0.55]
[1720396104296,0.17187316,2937.5,2935.5,4.68938225]
[1720396104458,2.46735887,2937.1,2935.5,4.68938225]
[1720396104656,2.88596792,2937.0,2935.5,5.19457587]
[1720396104892,3.17187316,2936.9,2935.5,5.19457587]
[1720396105089,2.53997316,2936.8,2935.2,0.29792851]
[1720396105398,0.17187316,2936.7,2935.2,0.29792851]
[1720396105560,3.17187316,2936.7,2935.2,0.29792851]
[1720396105756,0.17187316,2936.6,2935.3,0.06812463]
[1720396106293,0.17187316,2936.6,2935.2,0.63912851]
[1720396106470,0.41860905,2937.0,2935.3,1.08285108]
[1720396107082,0.41860905,2937.0,2935.3,0.53285108]
[1720396107302,2.4381,2936.9,2935.1,4.68938225]
[1720396107502,6.68687316,2936.8,2935.1,4.68938225]
[1720396107812,2.46710875,2936.3,2935.0,2.39086227]
[1720396107960,2.63898191,2936.2,2935.0,2.39086227]
[1720396108266,2.46710875,2935.9,2935.0,2.39086227]
[1720396108474,0.41858404,2935.8,2935.0,2.39086227]
[1720396108658,3.41858404,2935.8,2935.0,2.39086227]
[1720396108862,0.17187316,2935.7,2935.0,2.39086227]
[1720396109065,0.24671088,2935.8,2935.0,2.39086227]
[1720396109066,0.17187316,2935.8,2935.0,2.39086227]
[1720396109306,0.17187316,2935.8,2935.0,2.6299485]
[1720396109465,2.63898191,2936.1,2935.0,2.39086227]
[1720396109665,3.17187316,2936.0,2935.0,2.39086227]
[1720396110000,0.17187316,2935.9,2935.0,2.39086227]
[1720396110313,2.11406775,2935.8,2935.0,2.39086227]
[1720396110610,0.17187316,2935.7,2935.0,2.39086227]
[1720396110773,1.63453247,2935.7,2935.0,2.39086227]
[1720396110975,5.4664097,2936.0,2935.0,2.39086227]
[1720396110976,3.0,2936.0,2935.0,2.39086227]
[1720396111325,2.4664097,2936.1,2935.0,2.39086227]
[1720396111470,2.4664097,2936.2,2935.0,2.39086227]
[1720396111867,5.4664097,2936.3,2935.0,2.39086227]
[1720396112201,2.4381,2936.4,2935.1,0.30722033]
[1720396112408,2.4381,2936.4,2935.2,0.55]
[1720396112713,5.8664097,2936.8,2935.2,0.55]
[1720396113707,3.0,2936.7,2935.2,0.55]
[1720396114004,3.4,2936.8,2935.3,0.0625878]
[1720396114315,3.4,2936.8,2935.4,0.55]
[1720396114613,3.4,2936.8,2935.5,0.06258353]
[1720396114804,3.4,2936.8,2935.4,0.55]
[1720396114977,5.86873823,2936.8,2935.4,0.55]
[1720396115176,5.86784262,2936.8,2935.2,0.55]
[1720396115573,0.44616739,2936.7,2935.3,0.05828257]
[1720396115768,0.44616739,2936.7,2935.4,0.55]
[1720396115977,0.44616739,2936.7,2935.5,0.06812397]
[1720396115978,3.44616739,2936.7,2935.5,0.06812397]
[1720396116223,0.44616739,2936.6,2935.6,0.55]
[1720396116512,0.44616739,2936.6,2935.4,0.55]
[1720396116711,0.44616739,2936.6,2935.2,0.55]
[1720396116944,3.0,2936.7,2935.2,0.55]
[1720396117093,2.56159958,2936.6,2935.0,9.38354452]
[1720396117298,2.11545801,2936.3,2935.0,4.69416227]
[1720396117626,2.56159958,2936.2,2935.1,0.46941623]
[1720396117782,3.44614157,2936.1,2935.1,0.46941623]
[1720396117978,3.0,2936.4,2935.1,0.46941623]
[1720396117979,0.44614157,2936.0,2935.1,0.46941623]
[1720396118181,0.44614157,2935.9,2935.1,0.46941623]
[1720396118403,0.44614157,2935.8,2935.1,0.46941623]
[1720396118613,3.0,2936.2,2935.2,1.06635785]
[1720396118807,0.44620688,2936.1,2935.2,1.06635785]
[1720396119017,0.44620688,2936.0,2935.2,1.06635785]
[1720396119223,2.11545801,2936.4,2935.2,1.06635785]
[1720396119224,0.44620688,2935.9,2935.2,1.06635785]
[1720396119526,3.0,2936.3,2935.2,1.06635785]
[1720396119818,3.47032112,2937.2,2935.2,1.06635785]
[1720396119819,0.44620684,2936.2,2935.2,1.06635785]
[1720396120006,3.0,2936.4,2935.2,1.06635785]
[1720396120222,3.0,2936.6,2935.2,1.06635785]
[1720396120223,0.44631942,2936.3,2935.2,1.06635785]
[1720396120538,0.44631942,2936.2,2935.2,1.06635785]
[1720396120687,5.11635437,2936.4,2935.2,1.06635785]
[1720396120688,0.44631942,2936.1,2935.2,1.06635785]
[1720396121023,0.44631942,2936.0,2935.2,1.06635785]
[1720396121219,0.44631942,2935.9,2935.2,1.06635785]
[1720396121529,0.44631942,2935.8,2935.2,1.06635785]
[1720396121824,3.0,2936.3,2935.2,1.06635785]
[1720396122028,2.11635437,2936.5,2935.2,1.06635785]
[1720396122029,0.44642925,2936.2,2935.2,1.06635785]
[1720396122186,0.44642925,2936.1,2935.2,1.06635785]
[1720396122525,2.11635437,2936.7,2935.3,0.06811805]
[1720396122705,0.4464532,2936.6,2935.4,0.55]
[1720396122886,0.4464532,2936.5,2935.4,0.55]
[1720396123209,4.3329,2937.0,2935.5,0.06811355]
[1720396123426,2.56423247,2936.9,2935.6,0.55]
[1720396123733,0.44652669,2936.8,2935.6,0.55]
[1720396123900,0.44652669,2936.7,2935.6,0.55]
[1720396124409,3.44652669,2936.7,2935.6,0.55]
[1720396124651,0.44652669,2936.6,2935.6,0.55]
[1720396124911,0.4465347,2936.5,2935.6,0.55]
[1720396125140,0.4465347,2936.4,2935.6,0.55]
[1720396125295,0.4465347,2936.3,2935.6,0.55]
[1720396125491,0.4465347,2936.2,2935.6,0.55]
[1720396125731,3.0,2936.7,2935.6,0.55]
[1720396126038,0.61867085,2936.6,2935.6,0.55]
[1720396126345,0.44655112,2936.5,2935.6,0.55]
[1720396126649,0.17211973,2936.8,2935.6,0.55]
[1720396126650,0.44652053,2936.4,2935.6,0.55]
[1720396126812,2.11800358,2937.1,2935.6,2.9544]
[1720396127152,0.44651348,2937.0,2935.6,2.9544]
[1720396127309,3.4,2937.6,2935.6,2.9544]
[1720396127310,0.44651348,2936.9,2935.6,2.9544]
[1720396127511,2.11800358,2937.5,2935.7,0.29544]
[1720396127512,0.17215566,2937.4,2935.7,0.29544]
[1720396127832,0.44646572,2937.3,2935.8,0.55]
[1720396128516,0.61862138,2937.3,2935.8,0.55]
[1720396128725,0.44646572,2937.2,2935.8,0.55]
[1720396128932,0.44646572,2937.2,2935.6,2.4044]
[1720396128933,2.3002,2937.1,2935.6,2.4044]
[1720396129247,2.11800358,2936.9,2935.6,2.4044]
[1720396129540,0.17215566,2936.8,2935.2,4.68938225]
[1720396129850,2.3002,2937.1,2935.1,2.2586]
[1720396129851,2.11701318,2936.4,2935.1,2.2586]
[1720396130138,0.61871829,2936.3,2935.1,2.2586]
[1720396130301,0.44656263,2936.2,2935.1,2.2586]
[1720396130498,0.17215566,2936.2,2935.1,2.2586]
[1720396130702,0.44649764,2936.1,2935.1,2.2586]
[1720396130908,0.44649764,2936.0,2935.1,2.2586]
[1720396131113,0.44649764,2935.9,2935.2,0.46494623]
[1720396131421,0.44649764,2935.8,2935.3,0.06812834]
[1720396131634,0.17215566,2936.1,2935.3,0.06812834]
[1720396131830,0.44671864,2936.0,2935.2,0.46494623]
[1720396132036,0.44671864,2935.9,2935.3,0.06812833]
[1720396132243,0.44671864,2935.8,2935.3,0.06812833]
[1720396132455,0.17215566,2936.2,2935.2,0.46494623]
[1720396132746,0.44672724,2936.1,2935.3,0.34048294]
[1720396132947,0.44672197,2936.0,2935.3,0.34048294]
[1720396133148,0.44672197,2935.9,2935.3,0.34048294]
[1720396133445,0.44675707,2935.8,2935.3,0.27235462]
[1720396133649,0.17215566,2936.2,2935.3,0.27235462]
[1720396133807,0.44682462,2936.1,2935.3,0.27235462]
[1720396134013,0.44682462,2936.1,2935.4,0.55]
[1720396134744,0.44682462,2936.0,2935.4,0.55]
[1720396135044,0.17221397,2936.4,2935.4,0.55]
[1720396135211,0.44686647,2936.3,2935.4,0.55]
[1720396135644,0.61908044,2936.3,2935.4,0.55]
[1720396135813,0.44686647,2936.2,2935.4,0.55]
[1720396136221,0.44686457,2936.1,2935.4,0.55]
[1720396136439,0.44686457,2936.0,2935.4,0.55]
[1720396136652,0.44686457,2935.9,2935.4,0.55]
[1720396136865,0.17221397,2936.3,2935.4,0.55]
[1720396137011,0.44686247,2936.2,2935.4,0.55]
[1720396137516,0.44686247,2936.1,2935.4,0.55]
[1720396137714,0.44686247,2936.0,2935.4,0.55]
[1720396137914,0.44686247,2935.9,2935.4,0.55]
[1720396138114,0.17221397,2936.3,2935.4,0.55]
[1720396138316,0.44688091,2936.2,2935.4,0.55]
[1720396138726,0.61909488,2936.2,2935.4,0.55]
[1720396139060,0.44688091,2936.1,2935.4,0.55]
[1720396139570,0.44706794,2936.0,2935.4,0.55]
[1720396139728,0.44706794,2935.9,2935.4,0.55]
[1720396139928,0.44706794,2935.8,2935.4,0.5492]
[1720396140163,0.17221397,2936.2,2935.4,0.5492]
[1720396140329,0.44716844,2936.1,2935.4,0.5492]
[1720396140968,0.44716844,2936.0,2935.4,0.5492]
[1720396141282,0.17221397,2936.3,2935.4,0.5492]
[1720396141283,0.44716844,2935.9,2935.4,0.5492]
[1720396141446,0.44716844,2935.8,2935.4,0.5492]
[1720396141647,0.17221397,2936.3,2935.4,0.5492]
[1720396141961,0.17221397,2936.3,2935.1,2.2586]
[1720396141962,2.12277529,2936.1,2935.1,2.2586]
[1720396142215,0.17221397,2936.0,2935.2,0.55]
[1720396142470,0.44697644,2935.9,2935.2,0.55]
[1720396142656,3.61919041,2935.9,2935.2,0.55]
[1720396142851,0.61919041,2935.8,2935.2,0.55]
[1720396143032,0.44697644,2935.7,2935.2,1.06994623]
[1720396143363,0.17221397,2935.8,2935.0,2.39086227]
[1720396143364,0.44700429,2935.6,2935.0,2.39086227]
[1720396143536,0.44700429,2935.5,2935.0,2.39086227]
[1720396143744,0.44700429,2935.4,2935.0,2.39086227]
[1720396143955,2.12374949,2935.3,2935.0,2.39086227]
[1720396144149,0.61921826,2935.2,2935.0,2.39086227]
[1720396144334,0.44700429,2935.1,2935.0,2.39086227]
[1720396144537,0.61921826,2935.1,2935.0,2.39086227]
[1720396144762,0.61920615,2935.1,2935.0,2.39086227]
[1720396145769,2.74404655,2935.1,2935.0,2.39086227]
[1720396146062,0.61920615,2935.1,2935.0,2.39086227]
[1720396146271,3.44699218,2935.1,2935.0,2.39086227]
[1720396146565,6.09818662,2935.1,2935.0,2.39086227]
[1720396146762,3.09818662,2935.1,2935.0,2.39086227]
[1720396146971,3.61920615,2935.1,2935.0,2.39086227]
[1720396147565,5.74526086,2935.1,2935.0,2.39086227]
[1720396147768,3.61920615,2935.1,2935.0,2.39086227]
[1720396147945,2.74555428,2935.1,2935.0,2.39086227]
[1720396148145,5.74555428,2935.1,2935.0,2.39086227]
[1720396148571,3.61947207,2935.1,2935.0,2.39086227]
[1720396148887,0.61947207,2935.1,2935.0,2.39086227]
[1720396150580,3.09990131,2935.1,2935.0,1.28048729]
[1720396150754,6.09957207,2935.1,2935.0,0.91464979]
[1720396150960,5.65231397,2935.1,2935.0,0.43260085]
[1720396151159,6.10011109,2935.1,2935.0,0.43260085]
[1720396151684,6.10003123,2935.1,2935.0,0.43260085]
[1720396152272,3.61993123,2935.1,2935.0,0.43260085]
[1720396152660,3.44764871,2935.1,2935.0,0.43260085]
[1720396153488,5.92673545,2935.1,2935.0,0.33260085]
[1720396154149,5.4790806,2935.1,2935.0,0.33260085]
[1720396154473,2.9267118,2935.1,2935.0,0.33260085]
[1720396154665,5.9267118,2935.1,2935.0,0.33260085]
[1720396155099,3.4476312,2935.1,2934.2,0.00456956]
[1720396155308,2.12508774,2934.6,2934.2,0.00456956]
[1720396155603,0.4476312,2934.5,2934.2,0.00456956]
[1720396155746,5.57271894,2934.5,2934.2,0.00456956]
[1720396155951,0.4476312,2934.4,2934.2,0.00456956]
[1720396156147,3.4476312,2934.4,2934.2,0.00456956]
[1720396156457,0.4476312,2934.3,2934.2,0.00456956]
[1720396157298,0.44798076,2934.3,2934.2,0.00456956]
[1720396157787,0.44798076,2934.3,2934.0,0.02]
[1720396158584,0.44798076,2934.2,2934.0,0.02]
[1720396158888,0.44785982,2934.1,2934.0,0.02]
[1720396159059,2.46404366,2934.8,2934.0,0.02]
[1720396159269,3.0,2934.6,2934.0,0.02]
[1720396159464,0.44781611,2934.5,2934.0,0.02]
[1720396159699,0.44781611,2934.4,2934.0,0.02]
[1720396160058,5.56959252,2934.4,2934.0,0.02]
[1720396160250,5.12177641,2934.4,2934.0,0.02]
[1720396160492,0.44787498,2934.3,2934.0,0.02]
[1720396161025,3.0,2934.4,2934.0,0.02]
[1720396161026,0.44785608,2934.2,2934.0,0.02]
[1720396161331,0.44785608,2934.1,2934.0,0.02]
[1720396161621,3.0,2934.6,2934.0,0.02]
[1720396161622,0.44785522,2934.5,2934.0,0.02]
[1720396161923,3.0,2934.7,2934.0,0.02]
[1720396162088,0.44787547,2934.6,2934.0,0.02]
[1720396162297,5.46240329,2934.8,2934.0,0.02]
[1720396162298,0.44787547,2934.5,2934.0,0.02]
[1720396162629,0.44787547,2934.4,2934.0,0.02]
[1720396162811,5.12013604,2934.8,2934.0,0.02]
[1720396162812,0.44787547,2934.3,2934.0,0.02]
[1720396162977,3.0,2934.8,2934.0,0.02]
[1720396163181,0.44807083,2934.7,2934.0,0.02]
[1720396163627,3.0,2934.8,2934.0,0.02]
[1720396163628,0.44807044,2934.6,2934.0,0.02]
[1720396163920,0.44807044,2934.5,2934.0,0.02]
[1720396164221,3.44807044,2934.5,2934.0,0.02]
[1720396164380,0.44807044,2934.4,2934.0,0.02]
[1720396164582,0.44807044,2934.4,2933.8,0.1086129]
[1720396164583,2.2954,2934.3,2933.8,0.1086129]
[1720396164802,2.2954,2934.3,2932.8,4.68938225]
[1720396164803,2.12034548,2934.0,2932.8,4.68938225]
[1720396165001,2.56672978,2933.9,2932.5,0.88]
[1720396165203,5.82340276,2933.8,2932.5,0.88]
[1720396165415,0.44807044,2933.7,2932.5,0.88]
[1720396165619,2.3328,2933.6,2932.5,0.88]
[1720396165829,0.44807044,2933.5,2932.5,0.88]
[1720396166326,3.44807044,2933.5,2932.5,0.88]
[1720396166486,0.44807044,2933.4,2932.5,0.88]
[1720396166684,0.44793156,2933.3,2932.5,0.88]
[1720396166886,3.0,2933.5,2932.5,0.88]
[1720396167215,0.35155124,2934.4,2932.5,0.88]
[1720396167406,0.44806964,2934.3,2932.5,0.88]
[1720396167587,0.44806964,2934.2,2932.6,0.39078727]
[1720396167790,4.7779,2934.5,2932.5,0.94819052]
[1720396167791,0.44806964,2934.1,2932.5,0.94819052]
[1720396167980,2.4319,2933.9,2932.5,0.94819052]
[1720396168185,0.44806964,2933.8,2932.5,0.88]
[1720396168723,3.44806964,2933.8,2932.5,0.88]
[1720396168929,0.44806964,2933.7,2932.6,0.06819423]
[1720396169083,0.44806964,2933.7,2932.6,0.61819423]
[1720396169284,3.0,2933.8,2932.6,0.61819423]
[1720396169489,3.0,2933.8,2932.7,0.06818729]
[1720396169697,2.4319,2933.9,2932.7,0.06818729]
[1720396170001,0.44796044,2933.8,2932.7,0.06818729]
[1720396170319,0.44791549,2933.7,2932.6,0.55]
[1720396171316,0.44791549,2933.7,2932.5,0.88]
[1720396171830,0.44791549,2933.7,2932.6,0.55]
[1720396171984,0.62033601,2933.7,2932.5,0.9481935]
[1720396172180,3.0,2933.8,2932.5,0.9481935]
[1720396172421,0.44805493,2933.7,2932.5,0.9481935]
[1720396172624,0.44812738,2933.6,2932.5,0.88]
[1720396172834,2.4319,2933.9,2932.6,0.55]
[1720396173126,0.44803092,2933.8,2932.6,0.55]
[1720396173499,3.44803092,2933.8,2932.6,0.55]
[1720396173697,3.0,2933.7,2932.6,0.55]
[1720396173897,3.0,2934.3,2932.6,0.55]
[1720396174130,3.0,2934.3,2932.5,0.88]
[1720396174131,0.44805139,2934.2,2932.5,0.88]
[1720396174282,2.346,2934.0,2932.5,0.88]
[1720396174488,0.44805139,2933.9,2932.5,0.88]
[1720396174802,3.44805139,2933.9,2932.5,0.88]
[1720396175109,2.94255139,2933.8,2932.5,0.88]
[1720396175305,0.44805139,2933.7,2932.5,0.88]
[1720396175499,3.44805139,2933.7,2932.5,0.88]
[1720396175695,0.44805139,2933.6,2932.5,0.88]
[1720396175928,2.79405139,2933.6,2932.5,0.88]
[1720396176137,3.44799358,2933.5,2932.5,0.88]
[1720396176292,0.44799358,2933.4,2932.5,0.88]
[1720396176686,0.44799358,2933.3,2932.5,0.88]
[1720396176930,3.0,2933.7,2932.5,0.88]
[1720396177099,0.44777409,2933.6,2932.5,0.88]
[1720396177305,5.4945,2933.8,2932.5,0.88]
[1720396177306,0.44777409,2933.5,2932.5,0.88]
[1720396177486,0.44777409,2933.4,2932.5,0.88]
[1720396177785,3.0,2933.7,2932.5,0.88]
[1720396177786,0.44777409,2933.3,2932.5,0.88]
[1720396177984,3.0,2933.7,2932.5,0.88]
[1720396178186,3.0,2933.7,2932.6,2.3466]
[1720396178187,0.44766949,2933.6,2932.6,2.3466]
[1720396178649,0.44766949,2933.6,2932.5,0.88]
[1720396179229,0.44767285,2933.5,2932.5,0.88]
[1720396179396,0.44767285,2933.4,2932.5,0.88]
[1720396179588,3.0,2933.7,2932.5,0.88]
[1720396179784,0.44765102,2933.6,2932.5,0.88]
[1720396180085,0.44765102,2933.6,2932.6,0.06819414]
[1720396180286,0.3383239,2933.8,2932.7,2.2967]
[1720396180522,2.95920523,2934.2,2932.7,2.2967]
[1720396180829,0.44756122,2934.1,2932.8,0.06818695]
[1720396181002,0.44756122,2934.1,2932.9,0.23648869]
[1720396181710,0.81719553,2934.2,2933.0,0.55]
[1720396181711,0.3461903,2934.2,2933.0,0.55]
[1720396181901,2.4882,2934.6,2933.0,0.55]
[1720396182226,3.87100523,2934.7,2933.2,2.2967]
[1720396182227,3.4,2934.7,2933.2,2.2967]
[1720396182535,3.4,2934.7,2933.3,0.61817341]
[1720396182536,0.44756434,2934.6,2933.3,0.61817341]
[1720396182687,0.44756434,2934.6,2933.4,0.29148734]
[1720396183025,0.47100523,2935.0,2933.5,0.55]
[1720396183189,0.44767935,2934.9,2933.6,2.2967]
[1720396183387,0.44767935,2934.9,2933.7,0.55]
[1720396183603,0.44767935,2934.9,2933.7,0.9578339]
[1720396183956,0.44767935,2934.9,2933.8,0.0681639]
[1720396184119,0.44767935,2934.9,2933.7,0.88967]
[1720396184765,0.44767935,2934.9,2933.6,2.2967]
[1720396184766,0.91868458,2934.9,2933.6,2.2967]
[1720396184942,0.44767935,2934.8,2933.6,2.2967]
[1720396185299,0.47100523,2934.9,2933.6,2.2967]
[1720396185646,0.44766163,2934.8,2933.7,0.61816252]
[1720396185937,0.44766163,2934.8,2933.7,0.55]
[1720396186143,0.34563483,2935.0,2933.7,0.55]
[1720396186144,0.44766163,2934.7,2933.8,0.28467]
[1720396186350,0.44766163,2934.6,2933.8,0.28467]
[1720396186658,0.44766163,2934.5,2933.8,0.28467]
[1720396186815,3.33574287,2935.2,2933.8,0.28467]
[1720396187015,0.44763109,2935.1,2933.7,0.55]
[1720396187210,0.91863632,2935.1,2933.7,0.55]
[1720396187521,0.44763109,2935.0,2933.7,0.55]
[1720396188519,0.44752995,2934.9,2933.8,0.06816173]
[1720396188714,0.44752995,2934.8,2933.8,0.06816173]
[1720396189047,0.4475296,2934.7,2933.8,0.06816173]
[1720396189256,0.4475296,2934.6,2933.8,0.06816173]
[1720396189423,0.4475296,2934.5,2933.8,0.3596479]
[1720396189609,0.4475296,2934.4,2933.8,0.29148617]
[1720396189818,0.33574287,2935.2,2933.9,0.61815644]
[1720396190125,4.81842675,2935.6,2934.0,2.3936]
[1720396190126,0.44752558,2935.1,2934.0,2.3936]
[1720396190321,5.29078294,2935.6,2934.0,2.3936]
[1720396190322,0.44752558,2935.0,2934.1,0.06815595]
[1720396190527,0.44752558,2934.9,2934.1,0.06815595]
[1720396190727,0.44752558,2934.8,2934.2,0.55]
[1720396191050,0.44752558,2934.7,2934.3,0.06815187]
[1720396191244,2.59138613,2935.6,2934.3,0.06815187]
[1720396191415,0.44749515,2935.5,2934.4,2.3712]
[1720396191615,0.34380104,2935.8,2934.5,0.06814326]
[1720396191840,0.44746928,2935.7,2934.4,2.3712]
[1720396192047,0.44746928,2935.6,2934.5,0.55]
[1720396192258,0.44746928,2935.5,2934.5,0.84212]
[1720396192462,0.47100523,2935.8,2934.6,0.06814331]
[1720396192630,0.44745188,2935.7,2934.7,0.55]
[1720396192828,0.44745188,2935.6,2934.5,0.55]
[1720396193061,0.44745188,2935.5,2934.5,0.55]
[1720396193269,0.44745188,2935.4,2934.5,0.55]
[1720396193470,0.47100523,2935.7,2934.5,0.55]
[1720396193471,0.44745188,2935.3,2934.5,0.55]
[1720396193765,0.44745188,2935.2,2934.6,0.06814121]
[1720396193934,5.22100945,2936.2,2934.7,0.55]
[1720396193935,0.44745188,2935.1,2934.7,0.55]
[1720396194123,0.44735472,2935.0,2934.7,0.55]
[1720396194455,0.44735472,2935.0,2934.4,2.3712]
[1720396194456,3.0,2935.7,2934.5,0.61814161]
[1720396194620,0.44736079,2935.6,2934.5,0.61814161]
[1720396194821,0.44736079,2935.5,2934.5,0.84893416]
[1720396195057,0.44735185,2935.4,2934.5,0.84893416]
[1720396195231,0.44735967,2935.3,2934.5,0.84893416]
[1720396195430,0.44735967,2935.2,2934.5,0.84893416]
[1720396195630,5.12064962,2935.9,2934.6,0.32201342]
[1720396195822,0.44740872,2935.8,2934.7,2.89]
[1720396196442,0.44740872,2935.7,2934.7,2.89]
[1720396196660,0.44740872,2935.6,2934.7,2.89]
[1720396196857,0.44740872,2935.5,2934.7,2.89]
[1720396197062,0.44740872,2935.4,2934.7,3.21120134]
[1720396197224,0.44740872,2935.3,2934.7,2.89]
[1720396197426,0.4474064,2935.2,2934.7,2.89]
[1720396197671,5.45688586,2936.0,2934.7,2.89]
[1720396197971,0.4473452,2935.9,2934.7,2.89]
[1720396198259,0.4473452,2935.9,2934.8,2.37763582]
[1720396198432,0.4473452,2935.9,2935.0,2.3619]
[1720396198767,7.92100523,2936.7,2935.0,2.3619]
[1720396198768,10.0402416,2936.7,2935.1,0.06810826]
[1720396198927,0.44731995,2936.6,2935.2,0.55]
[1720396199268,0.91832518,2936.6,2935.3,0.06812303]
[1720396199426,0.91832518,2936.6,2935.4,0.55]
[1720396199427,0.44731995,2936.5,2935.4,0.55]
[1720396199625,0.44720791,2936.4,2935.4,0.55]
[1720396199886,2.79320791,2936.3,2935.0,2.3619]
[1720396200044,0.44720791,2936.2,2935.0,2.3619]